fUSD/lending_fUSD_20240627
["ID","MTS","AMOUNT","RATE_DAILY","PERIOD"]
[330486724,1719497046965,-500.0,0.00041867,30]
[330486725,1719497047009,-370.27180326,0.00041871,30]
[330486726,1719497047055,-180.40202542,0.00041871,30]
[330486727,1719497047112,-150.0,0.00041904,30]
[330486728,1719497047159,-150.0,0.00041914,30]
[330486729,1719497047201,-370.27180326,0.00041917,30]
[330486730,1719497047243,-180.40202542,0.00041917,30]
[330486731,1719497047302,-500.0,0.00041917,30]
[330486732,1719497047370,-1474.09,0.00041917,120]
[330486733,1719497047425,-500.0,0.00041917,120]
[330486734,1719497047468,-500.0,0.00041917,120]
[330486735,1719497047520,-500.0,0.00041917,30]
[330486736,1719497047595,-150.0,0.0004193,30]
[330486737,1719497047635,-370.27180326,0.00041962,30]
[330486738,1719497047675,-180.40202542,0.00041962,30]
[330486739,1719497047718,-150.0,0.00041968,30]
[330486740,1719497047759,-151.0,0.00041973,120]
[330486741,1719497047802,-50000.0,0.00042,32]
[330486742,1719497047840,-503.0,0.00042,120]
[330486743,1719497047880,-300.0,0.00042,120]
[330486744,1719497047921,-124000.0,0.00042,60]
[330486745,1719497047961,-500000.0,0.00042,60]
[330486746,1719497047999,-370.27180326,0.00042008,30]
[330486747,1719497048040,-180.40202542,0.00042008,30]
[330486748,1719497048086,-150.0,0.00042021,30]
[330486749,1719497048130,-370.27180326,0.00042053,30]
[330486750,1719497048169,-180.40202542,0.00042053,30]
[330486751,1719497048211,-150.0,0.00042074,30]
[330486752,1719497048251,-150.0,0.00042084,30]
[330486753,1719497048290,-370.27180326,0.00042099,30]
[330486754,1719497048329,-180.40202542,0.00042099,30]
[330486755,1719497048367,-150.0,0.00042127,30]
[330486756,1719497048406,-700.0,0.00042141,30]
[330486757,1719497048445,-500.0,0.00042141,30]
[330486758,1719497048486,-370.27180326,0.00042145,30]
[330486759,1719497048528,-150.0,0.00042145,30]
[330486760,1719497048572,-180.40202542,0.00042145,30]
[330486761,1719497048616,-150.0,0.00042152,120]
[330486762,1719497048662,-150.0,0.0004218,30]
[330486763,1719497049121,-370.27180326,0.0004219,30]
[330486764,1719497049163,-180.40202542,0.0004219,30]
[330486765,1719497049216,-500.0,0.00042191,30]
[330486766,1719497049267,-1474.09,0.00042191,120]
[330486767,1719497049313,-500.0,0.00042191,120]
[330486768,1719497049357,-500.0,0.00042191,120]
[330486769,1719497049404,-500.0,0.00042191,30]
[330486770,1719497049468,-150.0,0.00042233,30]
[330486771,1719497049509,-370.27180326,0.00042236,30]
[330486772,1719497049549,-180.40202542,0.00042236,30]
[330486773,1719497049590,-500000.0,0.0004225,60]
[330486774,1719497049630,-150.0,0.00042265,30]
[330486775,1719497049670,-370.27180326,0.00042282,30]
[330486776,1719497049711,-180.40202542,0.00042282,30]
[330486777,1719497049753,-150.0,0.00042286,30]
[330486778,1719497049795,-370.27180326,0.00042327,30]
[330486779,1719497049837,-180.40202542,0.00042327,30]
[330486780,1719497049876,-150.0,0.00042339,30]
[330486781,1719497049915,-151.0,0.00042356,120]
[330486782,1719497049961,-370.27180326,0.00042373,30]
[330486783,1719497050002,-180.40202542,0.00042373,30]
[330486784,1719497050041,-150.0,0.00042393,30]
[330486785,1719497050080,-500.0,0.00042415,30]
[330486786,1719497050119,-370.27180326,0.00042418,30]
[330486787,1719497050158,-180.40202542,0.00042418,30]
[330486788,1719497050196,-150.0,0.00042446,30]
[330486789,1719497050233,-150.0,0.00042446,30]
[330486790,1719497050268,-150.0,0.00042446,30]
[330486791,1719497050305,-370.27180326,0.00042464,30]
[330486792,1719497050342,-180.40202542,0.00042464,30]
[330486793,1719497050392,-500.0,0.00042465,30]
[330486794,1719497050440,-1474.09,0.00042465,120]
[330486795,1719497050484,-500.0,0.00042465,120]
[330486796,1719497050524,-500.0,0.00042465,120]
[330486797,1719497050569,-500.0,0.00042465,30]
[330486798,1719497050631,-150.0,0.00042499,30]
[330486799,1719497050671,-500000.0,0.000425,65]
[330486800,1719497050711,-751.26,0.000425,120]
[330486801,1719497050750,-441831.90237322,0.000425,30]
[330486802,1719497050789,-370.27180326,0.0004251,30]
[330486803,1719497050828,-180.40202542,0.0004251,30]
[330486804,1719497050865,-150.0,0.00042552,30]
[330486805,1719497050903,-370.27180326,0.00042555,30]
[330486806,1719497050940,-180.40202542,0.00042555,30]
[330486807,1719497050976,-150.0,0.00042575,30]
[330486808,1719497051014,-370.27180326,0.00042601,30]
[330486809,1719497051051,-180.40202542,0.00042601,30]
[330486810,1719497051087,-150.0,0.00042605,30]
[330486811,1719497051129,-150.0,0.00042626,30]
[330486812,1719497051166,-151.0,0.0004263,120]
[330486813,1719497051202,-370.27180326,0.00042646,30]
[330486814,1719497051239,-180.40202542,0.00042646,30]
[330486815,1719497051274,-150.0,0.00042658,30]
[330486816,1719497051310,-700.0,0.00042689,30]
[330486817,1719497051347,-500.0,0.00042689,30]
[330486818,1719497051383,-370.27180326,0.00042692,30]
[330486819,1719497051419,-180.40202542,0.00042692,30]
[330486820,1719497051457,-150.0,0.00042711,30]
[330486821,1719497051495,-370.27180326,0.00042738,30]
[330486822,1719497051532,-180.40202542,0.00042738,30]
[330486823,1719497051583,-500.0,0.00042739,30]
[330486824,1719497051632,-1474.09,0.00042739,120]
[330486825,1719497051678,-500.0,0.00042739,120]
[330486826,1719497051718,-500.0,0.00042739,120]
[330486827,1719497051765,-500.0,0.00042739,30]
[330486828,1719497051826,-500000.0,0.0004275,65]
[330486829,1719497051862,-150.0,0.00042764,30]
[330486830,1719497051902,-370.27180326,0.00042783,30]
[330486831,1719497051939,-180.40202542,0.00042783,30]
[330486832,1719497051988,-1000000.0,0.000428,30]
[330486833,1719497052256,-150.0,0.00042807,30]
[330486834,1719497052532,-150.0,0.00042818,30]
[330486835,1719497052774,-370.27180326,0.00042829,30]
[330486836,1719497052817,-180.40202542,0.00042829,30]
[330486837,1719497052861,-150.0,0.00042871,30]
[330486838,1719497052906,-370.27180326,0.00042874,30]
[330486839,1719497052946,-180.40202542,0.00042874,30]
[330486840,1719497052984,-150.0,0.00042897,30]
[330486841,1719497053024,-150.0,0.00042897,30]
[330486842,1719497053066,-150.0,0.00042897,30]
[330486843,1719497053103,-370.27180326,0.0004292,30]
[330486844,1719497053142,-180.40202542,0.0004292,30]
[330486845,1719497053180,-150.0,0.00042924,30]
[330486846,1719497053216,-240.3075648,0.00042963,30]
[330486847,1719497053254,-370.27180326,0.00042966,30]
[330486848,1719497053294,-180.40202542,0.00042966,30]
[330486849,1719497053333,-150.0,0.00042977,30]
[330486850,1719497053370,-1039.0,0.00042987,30]
[330486851,1719497053411,-150.0,0.00042988,30]
[330486852,1719497053455,-50000.0,0.00043,33]
[330486853,1719497053495,-549.80547905,0.00043,30]
[330486854,1719497053537,-663.26,0.00043,65]
[330486855,1719497053579,-4999.999999,0.00043,60]
[330486856,1719497053620,-500000.0,0.00043,65]
[330486857,1719497053664,-370.27180326,0.00043011,30]
[330486858,1719497053704,-180.40202542,0.00043011,30]
[330486859,1719497053758,-266.21649259,0.00043013,30]
[330486860,1719497054059,-1474.09,0.00043013,120]
[330486861,1719497054107,-500.0,0.00043013,120]
[330486862,1719497054149,-500.0,0.00043013,120]
[330486863,1719497054195,-500.0,0.00043013,30]
[330486864,1719497054258,-150.0,0.0004303,30]
[330486865,1719497054296,-370.27180326,0.00043057,30]
[330486866,1719497054334,-180.40202542,0.00043057,30]
[330486867,1719497054371,-150.0,0.00043083,30]
[330486868,1719497054413,-370.27180326,0.00043103,30]
[330486869,1719497054452,-180.40202542,0.00043103,30]
[330486870,1719497054492,-150.0,0.00043136,30]
[330486871,1719497054534,-370.27180326,0.00043148,30]
[330486872,1719497054574,-180.40202542,0.00043148,30]
[330486873,1719497054615,-150.0,0.00043168,30]
[330486874,1719497054659,-150.0,0.00043189,30]
[330486875,1719497054698,-370.27180326,0.00043194,30]
[330486876,1719497054740,-180.40202542,0.00043194,30]
[330486877,1719497054780,-150.0,0.0004322,30]
[330486878,1719497054818,-700.0,0.00043237,30]
[330486879,1719497054856,-500.0,0.00043237,30]
[330486880,1719497054894,-370.27180326,0.00043239,30]
[330486881,1719497054936,-180.40202542,0.00043239,30]
[330486882,1719497054975,-150.0,0.00043243,30]
[330486883,1719497055014,-500000.0,0.0004325,65]
[330486884,1719497055054,-370.27180326,0.00043285,30]
[330486885,1719497055092,-180.40202542,0.00043285,30]
[330486886,1719497055149,-1474.09,0.00043287,120]
[330486887,1719497055195,-500.0,0.00043287,120]
[330486888,1719497055235,-500.0,0.00043287,120]
[330486889,1719497055279,-500.0,0.00043287,30]
[330486890,1719497055335,-151.0,0.00043288,120]
[330486891,1719497055372,-150.0,0.00043296,30]
[330486892,1719497055410,-1000.0,0.000433,120]
[330486893,1719497055450,-1000.0,0.000433,120]
[330486894,1719497055487,-1000.0,0.000433,120]
[330486895,1719497055525,-1000.0,0.000433,120]
[330486896,1719497055564,-1001.93,0.000433,120]
[330486897,1719497055603,-370.27180326,0.00043331,30]
[330486898,1719497055643,-180.40202542,0.00043331,30]
[330486899,1719497055682,-150.0,0.00043335,120]
[330486900,1719497055722,-150.0,0.00043349,30]
[330486901,1719497055762,-150.0,0.00043349,30]
[330486902,1719497055800,-150.0,0.00043349,30]
[330486903,1719497055838,-370.27180326,0.00043376,30]
[330486904,1719497055877,-180.40202542,0.00043376,30]
[330486905,1719497055920,-150.0,0.00043402,30]
[330486906,1719497055966,-370.27180326,0.00043422,30]
[330486907,1719497056008,-180.40202542,0.00043422,30]
[330486908,1719497056046,-150.0,0.00043455,30]
[330486909,1719497056085,-370.27180326,0.00043467,30]
[330486910,1719497056124,-180.40202542,0.00043467,30]
[330486911,1719497056165,-500000.0,0.000435,70]
[330486912,1719497056202,-150.0,0.00043508,30]
[330486913,1719497056242,-370.27180326,0.00043513,30]
[330486914,1719497056280,-180.40202542,0.00043513,30]
[330486915,1719497056318,-150.0,0.00043529,30]
[330486916,1719497056356,-151.0,0.00043534,120]
[330486917,1719497056395,-370.27180326,0.00043559,30]
[330486918,1719497056435,-180.40202542,0.00043559,30]
[330486919,1719497056475,-500.0,0.00043561,120]
[330486920,1719497056513,-500.0,0.00043561,120]
[330486921,1719497056550,-500.0,0.00043561,120]
[330486922,1719497056588,-500.0,0.00043561,120]
[330486923,1719497056625,-453.96514328,0.00043561,120]
[330486924,1719497056664,-500.0,0.00043561,120]
[330486925,1719497056701,-544.44517674,0.00043561,120]
[330486926,1719497056740,-378.08047768,0.00043561,120]
[330486927,1719497056778,-500.0,0.00043561,120]
[330486928,1719497056815,-500.0,0.00043561,120]
[330486929,1719497056854,-994.61,0.00043561,120]
[330486930,1719497056893,-500.0,0.00043561,120]
[330486931,1719497056931,-500.0,0.00043561,120]
[330486932,1719497056968,-1853.22,0.00043561,120]
[330486933,1719497057006,-500.0,0.00043561,120]
[330486934,1719497057044,-895.45,0.00043561,120]
[330486935,1719497057083,-500.0,0.00043561,120]
[330486936,1719497057122,-221.47990575,0.00043561,120]
[330486937,1719497057168,-500.0,0.00043561,120]
[330486938,1719497057207,-638.65,0.00043561,120]
[330486939,1719497057246,-1253.58,0.00043561,120]
[330486940,1719497057284,-500.0,0.00043561,120]
[330486941,1719497057323,-500.0,0.00043561,120]
[330486942,1719497057362,-500.0,0.00043561,120]
[330486943,1719497057400,-500.0,0.00043561,120]
[330486944,1719497057438,-500.0,0.00043561,120]
[330486945,1719497057477,-550.95,0.00043561,120]
[330486946,1719497057517,-1533.48,0.00043561,120]
[330486947,1719497057556,-1069.35,0.00043561,120]
[330486948,1719497057595,-2992.71,0.00043561,120]
[330486949,1719497057636,-586.27,0.00043561,120]
[330486950,1719497057675,-586.75665911,0.00043561,120]
[330486951,1719497057713,-500.0,0.00043561,120]
[330486952,1719497057753,-500.0,0.00043561,120]
[330486953,1719497057792,-500.0,0.00043561,120]
[330486954,1719497057832,-500.0,0.00043561,120]
[330486955,1719497057872,-780.27,0.00043561,120]
[330486956,1719497057913,-500.0,0.00043561,120]
[330486957,1719497057952,-500.0,0.00043561,120]
[330486958,1719497057991,-500.0,0.00043561,120]
[330486959,1719497058031,-609.38,0.00043561,120]
[330486960,1719497058068,-500.0,0.00043561,120]
[330486961,1719497058326,-500.0,0.00043561,120]
[330486962,1719497058390,-500.0,0.00043561,120]
[330486963,1719497058431,-500.0,0.00043561,120]
[330486964,1719497058470,-500.0,0.00043561,120]
[330486965,1719497058510,-500.0,0.00043561,120]
[330486966,1719497058550,-500.0,0.00043561,120]
[330486967,1719497058591,-500.57,0.00043561,120]
[330486968,1719497058632,-2224.64,0.00043561,120]
[330486969,1719497058679,-829.66,0.00043561,120]
[330486970,1719497058720,-1224.75,0.00043561,120]
[330486971,1719497058763,-500.0,0.00043561,120]
[330486972,1719497058804,-500.0,0.00043561,120]
[330486973,1719497058844,-500.0,0.00043561,120]
[330486974,1719497058884,-500.0,0.00043561,120]
[330486975,1719497058929,-500.0,0.00043561,120]
[330486976,1719497058970,-500.0,0.00043561,120]
[330486977,1719497059010,-500.0,0.00043561,120]
[330486978,1719497059049,-720.01,0.00043561,120]
[330486979,1719497059088,-2234.32,0.00043561,120]
[330486980,1719497059126,-500.0,0.00043561,120]
[330486981,1719497059167,-500.0,0.00043561,120]
[330486982,1719497059205,-509.82835773,0.00043561,120]
[330486983,1719497059244,-448.95,0.00043561,120]
[330486984,1719497059281,-500.0,0.00043561,120]
[330486985,1719497059319,-500.0,0.00043561,120]
[330486986,1719497059356,-500.0,0.00043561,120]
[330486987,1719497059399,-529.25,0.00043561,120]
[330486988,1719497059441,-659.24,0.00043561,120]
[330486989,1719497059479,-500.0,0.00043561,120]
[330486990,1719497059516,-500.0,0.00043561,120]
[330486991,1719497059554,-500.0,0.00043561,120]
[330486992,1719497059592,-1446.15,0.00043561,120]
[330486993,1719497059631,-834.19,0.00043561,120]
[330486994,1719497059671,-500.0,0.00043561,120]
[330486995,1719497059711,-542.11,0.00043561,120]
[330486996,1719497059753,-500.0,0.00043561,120]
[330486997,1719497059792,-500.0,0.00043561,120]
[330486998,1719497059830,-610.18,0.00043561,120]
[330486999,1719497059869,-500.0,0.00043561,120]
[330487000,1719497059907,-1268.8,0.00043561,120]
[330487001,1719497059945,-500.0,0.00043561,120]
[330487002,1719497059983,-1250.15,0.00043561,120]
[330487003,1719497060020,-1074.42,0.00043561,120]
[330487004,1719497060059,-782.33,0.00043561,120]
[330487005,1719497060097,-776.53,0.00043561,120]
[330487006,1719497060134,-500.0,0.00043561,120]
[330487007,1719497060172,-500.0,0.00043561,120]
[330487008,1719497060208,-754.02,0.00043561,120]
[330487009,1719497060243,-500.0,0.00043561,120]
[330487010,1719497060280,-500.0,0.00043561,120]
[330487011,1719497060318,-770.82,0.00043561,120]
[330487012,1719497060355,-500.0,0.00043561,120]
[330487013,1719497060394,-512.09661044,0.00043561,120]
[330487014,1719497060430,-500.0,0.00043561,120]
[330487015,1719497060468,-1902.3,0.00043561,120]
[330487016,1719497060505,-911.8,0.00043561,120]
[330487017,1719497060542,-881.21,0.00043561,120]
[330487018,1719497060579,-500.0,0.00043561,120]
[330487019,1719497060617,-500.0,0.00043561,120]
[330487020,1719497060653,-500.0,0.00043561,120]
[330487021,1719497060690,-722.15,0.00043561,120]
[330487022,1719497060727,-500.0,0.00043561,120]
[330487023,1719497060764,-500.0,0.00043561,120]
[330487024,1719497060800,-500.0,0.00043561,120]
[330487025,1719497060836,-454.1629412,0.00043561,120]
[330487026,1719497060872,-500.0,0.00043561,120]
[330487027,1719497060908,-500.0,0.00043561,120]
[330487028,1719497060944,-792.45,0.00043561,120]
[330487029,1719497060982,-1003.17,0.00043561,120]
[330487030,1719497061021,-1048.58,0.00043561,120]
[330487031,1719497061060,-500.0,0.00043561,120]
[330487032,1719497061098,-615.63,0.00043561,120]
[330487033,1719497061138,-500.0,0.00043561,120]
[330487034,1719497061180,-3039.14,0.00043561,120]
[330487035,1719497061220,-500.0,0.00043561,120]
[330487036,1719497061257,-500.0,0.00043561,120]
[330487037,1719497061295,-1234.0,0.00043561,120]
[330487038,1719497061331,-500.0,0.00043561,120]
[330487039,1719497061368,-500.0,0.00043561,120]
[330487040,1719497061405,-543.34,0.00043561,120]
[330487041,1719497061442,-1220.15,0.00043561,120]
[330487042,1719497061480,-524.26,0.00043561,120]
[330487043,1719497061516,-500.0,0.00043561,120]
[330487044,1719497061552,-564.87,0.00043561,120]
[330487045,1719497061588,-500.0,0.00043561,120]
[330487046,1719497061624,-1082.45,0.00043561,120]
[330487047,1719497061660,-520.97,0.00043561,120]
[330487048,1719497061698,-500.0,0.00043561,120]
[330487049,1719497061735,-500.0,0.00043561,120]
[330487050,1719497061771,-500.0,0.00043561,120]
[330487051,1719497061807,-500.0,0.00043561,120]
[330487052,1719497061844,-500.0,0.00043561,120]
[330487053,1719497061881,-3125.46,0.00043561,120]
[330487054,1719497061925,-500.0,0.00043561,120]
[330487055,1719497061964,-754.87,0.00043561,120]
[330487056,1719497062005,-520.35,0.00043561,120]
[330487057,1719497062044,-565.2,0.00043561,120]
[330487058,1719497062080,-500.0,0.00043561,120]
[330487059,1719497062119,-1338.11,0.00043561,120]
[330487060,1719497062156,-500.0,0.00043561,120]
[330487061,1719497062193,-935.06,0.00043561,120]
[330487062,1719497062233,-500.0,0.00043561,120]
[330487063,1719497062271,-249.52430831,0.00043561,120]
[330487064,1719497062308,-722.97,0.00043561,120]
[330487065,1719497062344,-535.08,0.00043561,120]
[330487066,1719497062381,-576.51,0.00043561,120]
[330487067,1719497062648,-524.74,0.00043561,120]
[330487068,1719497062696,-500.0,0.00043561,120]
[330487069,1719497062736,-500.0,0.00043561,120]
[330487070,1719497062774,-500.0,0.00043561,120]
[330487071,1719497062810,-500.0,0.00043561,120]
[330487072,1719497062847,-500.0,0.00043561,120]
[330487073,1719497062882,-500.0,0.00043561,120]
[330487074,1719497062920,-500.0,0.00043561,120]
[330487075,1719497062958,-500.0,0.00043561,120]
[330487076,1719497062996,-500.0,0.00043561,120]
[330487077,1719497063034,-500.0,0.00043561,120]
[330487078,1719497063071,-500.0,0.00043561,120]
[330487079,1719497063110,-2188.83,0.00043561,120]
[330487080,1719497063152,-500.0,0.00043561,120]
[330487081,1719497063190,-500.0,0.00043561,120]
[330487082,1719497063227,-500.0,0.00043561,120]
[330487083,1719497063266,-782.31,0.00043561,120]
[330487084,1719497063302,-500.0,0.00043561,120]
[330487085,1719497063340,-777.35,0.00043561,120]
[330487086,1719497063378,-500.0,0.00043561,120]
[330487087,1719497063419,-966.32,0.00043561,120]
[330487088,1719497063457,-523.4,0.00043561,120]
[330487089,1719497063498,-500.0,0.00043561,120]
[330487090,1719497063536,-997.67,0.00043561,120]
[330487091,1719497063573,-1465.82,0.00043561,120]
[330487092,1719497063613,-500.0,0.00043561,120]
[330487093,1719497063653,-284.20651226,0.00043561,120]
[330487094,1719497063695,-500.0,0.00043561,120]
[330487095,1719497063738,-1027.22,0.00043561,120]
[330487096,1719497063779,-500.0,0.00043561,120]
[330487097,1719497063818,-500.0,0.00043561,120]
[330487098,1719497063857,-2202.49,0.00043561,120]
[330487099,1719497063898,-500.0,0.00043561,120]
[330487100,1719497063936,-500.0,0.00043561,120]
[330487101,1719497063976,-500.0,0.00043561,120]
[330487102,1719497064016,-333.28123137,0.00043561,120]
[330487103,1719497064057,-500.0,0.00043561,120]
[330487104,1719497064098,-500.0,0.00043561,120]
[330487105,1719497064139,-500.0,0.00043561,120]
[330487106,1719497064182,-2189.63,0.00043561,120]
[330487107,1719497064222,-500.0,0.00043561,120]
[330487108,1719497064261,-500.0,0.00043561,120]
[330487109,1719497064299,-500.0,0.00043561,120]
[330487110,1719497064337,-609.6,0.00043561,120]
[330487111,1719497064375,-1118.3,0.00043561,120]
[330487112,1719497064412,-500.16,0.00043561,120]
[330487113,1719497064450,-500.0,0.00043561,120]
[330487114,1719497064490,-500.0,0.00043561,120]
[330487115,1719497064528,-500.0,0.00043561,120]
[330487116,1719497064567,-599.09,0.00043561,120]
[330487117,1719497064604,-741.09,0.00043561,120]
[330487118,1719497064643,-500.0,0.00043561,120]
[330487119,1719497064686,-738.36,0.00043561,120]
[330487120,1719497064727,-510.09919947,0.00043561,120]
[330487121,1719497064767,-2021.89,0.00043561,120]
[330487122,1719497064809,-710.44,0.00043561,120]
[330487123,1719497064849,-574.06,0.00043561,120]
[330487124,1719497064890,-818.05,0.00043561,120]
[330487125,1719497064932,-1180.91,0.00043561,120]
[330487126,1719497064974,-500.0,0.00043561,120]
[330487127,1719497065011,-699.4,0.00043561,120]
[330487128,1719497065051,-500.0,0.00043561,120]
[330487129,1719497065090,-500.0,0.00043561,120]
[330487130,1719497065128,-500.0,0.00043561,120]
[330487131,1719497065167,-500.0,0.00043561,120]
[330487132,1719497065208,-1019.57,0.00043561,120]
[330487133,1719497065248,-1341.1,0.00043561,120]
[330487134,1719497065289,-500.0,0.00043561,120]
[330487135,1719497065330,-513.68970795,0.00043561,120]
[330487136,1719497065369,-2165.62,0.00043561,120]
[330487137,1719497065408,-1125.94,0.00043561,120]
[330487138,1719497065446,-2139.54,0.00043561,120]
[330487139,1719497065484,-606.03394799,0.00043561,120]
[330487140,1719497065524,-1677.84,0.00043561,120]
[330487141,1719497065565,-541.78,0.00043561,120]
[330487142,1719497065606,-500.0,0.00043561,120]
[330487143,1719497065645,-1507.37,0.00043561,120]
[330487144,1719497065687,-592.39,0.00043561,120]
[330487145,1719497065730,-500.0,0.00043561,120]
[330487146,1719497065771,-500.0,0.00043561,120]
[330487147,1719497065811,-806.1,0.00043561,120]
[330487148,1719497065851,-500.0,0.00043561,120]
[330487149,1719497065893,-934.95,0.00043561,120]
[330487150,1719497065932,-500.0,0.00043561,120]
[330487151,1719497065972,-500.0,0.00043561,120]
[330487152,1719497066011,-1940.32,0.00043561,120]
[330487153,1719497066051,-541.46,0.00043561,120]
[330487154,1719497066093,-1210.43,0.00043561,120]
[330487155,1719497066132,-2498.29,0.00043561,120]
[330487156,1719497066174,-615.75,0.00043561,120]
[330487157,1719497066212,-500.0,0.00043561,120]
[330487158,1719497066249,-288.1373867,0.00043561,120]
[330487159,1719497066289,-665.06,0.00043561,120]
[330487160,1719497066325,-500.0,0.00043561,120]
[330487161,1719497066384,-500.0,0.00043561,120]
[330487162,1719497066429,-2283.06,0.00043561,120]
[330487163,1719497066469,-1582.78,0.00043561,120]
[330487164,1719497066512,-559.06,0.00043561,120]
[330487165,1719497066553,-819.43,0.00043561,120]
[330487166,1719497066595,-1209.15,0.00043561,120]
[330487167,1719497066633,-500.0,0.00043561,120]
[330487168,1719497066673,-500.0,0.00043561,120]
[330487169,1719497066712,-612.39,0.00043561,120]
[330487170,1719497066754,-500.0,0.00043561,120]
[330487171,1719497066794,-712.13,0.00043561,120]
[330487172,1719497066834,-1261.4,0.00043561,120]
[330487173,1719497067222,-504.06,0.00043561,120]
[330487174,1719497067261,-2276.64,0.00043561,120]
[330487175,1719497067300,-500.0,0.00043561,120]
[330487176,1719497067340,-1893.96,0.00043561,120]
[330487177,1719497067379,-500.0,0.00043561,120]
[330487178,1719497067419,-182.56468148,0.00043561,120]
[330487179,1719497067458,-500.0,0.00043561,120]
[330487180,1719497067498,-2084.48,0.00043561,120]
[330487181,1719497067536,-500.0,0.00043561,120]
[330487182,1719497067575,-500.0,0.00043561,120]
[330487183,1719497067613,-500.0,0.00043561,120]
[330487184,1719497067652,-500.0,0.00043561,120]
[330487185,1719497067690,-524.27,0.00043561,120]
[330487186,1719497067734,-500.0,0.00043561,120]
[330487187,1719497067774,-500.0,0.00043561,120]
[330487188,1719497067812,-574.39,0.00043561,120]
[330487189,1719497067852,-500.0,0.00043561,120]
[330487190,1719497067894,-958.69,0.00043561,120]
[330487191,1719497067935,-500.0,0.00043561,120]
[330487192,1719497067973,-500.0,0.00043561,120]
[330487193,1719497068012,-500.0,0.00043561,120]
[330487194,1719497068050,-500.0,0.00043561,120]
[330487195,1719497068088,-1061.93,0.00043561,120]
[330487196,1719497068125,-2536.38,0.00043561,120]
[330487197,1719497068163,-500.0,0.00043561,120]
[330487198,1719497068202,-500.0,0.00043561,120]
[330487199,1719497068240,-500.0,0.00043561,120]
[330487200,1719497068276,-533.35,0.00043561,120]
[330487201,1719497068313,-500.0,0.00043561,120]
[330487202,1719497068350,-500.0,0.00043561,120]
[330487203,1719497068390,-2087.08,0.00043561,120]
[330487204,1719497068436,-928.79,0.00043561,120]
[330487205,1719497068480,-1166.43,0.00043561,120]
[330487206,1719497068523,-500.0,0.00043561,120]
[330487207,1719497068563,-883.39,0.00043561,120]
[330487208,1719497068605,-1462.85,0.00043561,120]
[330487209,1719497068650,-501.83,0.00043561,120]
[330487210,1719497068691,-900.2,0.00043561,120]
[330487211,1719497068732,-500.0,0.00043561,120]
[330487212,1719497068773,-500.0,0.00043561,120]
[330487213,1719497068812,-628.37,0.00043561,120]
[330487214,1719497068852,-684.63,0.00043561,120]
[330487215,1719497068895,-1119.98,0.00043561,120]
[330487216,1719497068939,-500.0,0.00043561,120]
[330487217,1719497068982,-628.19274934,0.00043561,120]
[330487218,1719497069023,-1333.45,0.00043561,120]
[330487219,1719497069062,-500.0,0.00043561,120]
[330487220,1719497069102,-2044.0,0.00043561,120]
[330487221,1719497069139,-1605.76,0.00043561,120]
[330487222,1719497069180,-1770.8,0.00043561,120]
[330487223,1719497069220,-1415.54,0.00043561,120]